bitfinex/quotes_ETHUSD_20230118
["timestamp","ask_amount","ask_price","bid_price","bid_amount"]
[1674073426539,7.23678886,1539.0,1538.9,1.464]
[1674073426802,13.73450886,1539.0,1538.9,1.464]
[1674073427276,14.74450634,1539.0,1538.9,1.464]
[1674073427624,13.73450886,1539.0,1538.9,1.464]
[1674073428034,13.06144,1539.0,1538.9,1.6104]
[1674073428262,6.56372,1539.0,1538.9,1.6104]
[1674073428602,7.23678886,1539.0,1538.9,1.464]
[1674073428905,0.066,1539.0,1538.9,1.464]
[1674073429055,0.11276181,1539.1,1538.9,1.464]
[1674073429270,0.04676181,1539.1,1539.0,1.6524]
[1674073430805,0.04676181,1539.1,1539.0,3.1664]
[1674073431487,0.04676181,1539.1,1539.0,9.66412]
[1674073431693,0.04676181,1539.1,1539.0,9.72994778]
[1674073433210,0.04676181,1539.1,1539.0,16.22766778]
[1674073433595,0.04676181,1539.1,1539.0,19.51941537]
[1674073433789,0.04676181,1539.1,1539.0,13.02169537]
[1674073434011,0.04676181,1539.1,1539.0,6.52397537]
[1674073434259,0.04676181,1539.1,1539.0,3.23222778]
[1674073434588,0.04676181,1539.1,1539.0,3.1664]
[1674073435149,0.04676181,1539.1,1539.0,1.6604]
[1674073436616,0.73783067,1539.3,1539.0,1.6604]
[1674073436805,0.67306886,1539.3,1539.1,1.68004]
[1674073437015,0.67306886,1539.3,1539.2,1.5]
[1674073437242,14.74011815,1539.4,1539.2,1.666604]
[1674073437456,8.24387815,1539.4,1539.2,1.666604]
[1674073437770,0.67306886,1539.3,1539.2,1.666604]
[1674073437994,14.74010815,1539.4,1539.2,1.666604]
[1674073438303,14.74017815,1539.4,1539.2,1.5]
[1674073438924,0.67306886,1539.3,1539.2,1.5]
[1674073439084,7.16951886,1539.3,1539.2,1.5]
[1674073439295,6.56121181,1539.3,1539.1,1.514]
[1674073439508,7.23428067,1539.3,1539.1,1.514]
[1674073439826,13.73073067,1539.3,1539.1,1.514]
[1674073440039,13.73073067,1539.3,1539.0,1.508]
[1674073440040,16.86440596,1539.3,1539.0,1.508]
[1674073440823,23.36085596,1539.3,1539.0,1.508]
[1674073441183,1.0,1539.2,1539.0,1.508]
[1674073441608,7.49709,1539.2,1539.0,1.508]
[1674073441862,7.56185181,1539.2,1539.0,1.508]
[1674073442082,14.05894181,1539.2,1538.9,11.55752778]
[1674073442267,14.05894181,1539.2,1538.9,1.57282778]
[1674073442481,13.05894181,1539.2,1538.9,2.47923278]
[1674073442693,6.56185181,1539.2,1538.9,2.47923278]
[1674073444124,6.46185181,1539.2,1538.9,1.507]
[1674073444566,7.13492067,1539.2,1538.8,0.06582778]
[1674073444776,12.99544,1539.0,1538.7,10.93602778]
[1674073445024,13.06020181,1539.0,1538.7,1.57982778]
[1674073445344,13.06020181,1539.0,1538.7,1.514]
[1674073446346,19.55792181,1539.0,1538.7,1.514]
[1674073449334,0.06476181,1539.0,1538.8,1.514]
[1674073449547,0.064,1539.0,1538.8,1.514]
[1674073449857,13.05988181,1539.1,1538.8,1.514]
[1674073450080,13.05984181,1539.1,1538.8,1.91688406]
[1674073450811,12.95984181,1539.1,1538.8,1.91688406]
[1674073451019,20.13045067,1539.1,1538.8,1.91688406]
[1674073451542,20.13045067,1539.1,1538.8,1.514]
[1674073453396,0.67306886,1539.0,1538.8,1.514]
[1674073453617,7.17095886,1539.0,1538.8,1.514]
[1674073453802,7.23572067,1539.0,1538.8,1.514]
[1674073454328,6.56265181,1539.0,1538.8,1.514]
[1674073454741,13.73361067,1539.0,1538.8,1.514]
[1674073455456,14.74360815,1539.0,1538.8,1.514]
[1674073455620,0.67306886,1538.9,1538.8,1.514]
[1674073455800,7.17146886,1538.9,1538.6,9.34312778]
[1674073456165,6.56316181,1538.9,1538.7,0.93431278]
[1674073456378,6.56316181,1538.9,1538.6,1.507]
[1674073456379,7.23623067,1538.9,1538.6,1.507]
[1674073456604,21.24276815,1538.9,1538.5,14.54482778]
[1674073456746,21.24276815,1538.9,1538.6,1.45448278]
[1674073457109,0.73783067,1538.9,1538.6,1.45448278]
[1674073457303,0.004684,1538.7,1538.6,1.45448278]
[1674073459412,0.67775286,1538.7,1538.6,1.45448278]
[1674073460066,0.67775286,1538.7,1538.5,4.57982778]
[1674073460256,0.004684,1538.7,1538.5,4.514]
[1674073461825,0.004684,1538.7,1538.5,3.0]
[1674073463054,0.004684,1538.7,1538.5,9.4998]
[1674073463432,0.004684,1538.7,1538.6,0.94998]
[1674073464538,0.004684,1538.7,1538.5,3.0]
[1674073464749,0.004684,1538.7,1538.5,2.35440405]
[1674073469619,0.004684,1538.7,1538.5,8.85422405]
[1674073469774,0.004684,1538.7,1538.5,12.21179942]
[1674073469981,0.004684,1538.7,1538.6,1.22117994]
[1674073470833,0.004684,1538.7,1538.5,2.42023183]
[1674073470834,0.004684,1538.7,1538.5,2.35440405]
[1674073472944,0.004684,1538.7,1538.5,2.30440405]
[1674073473835,0.004684,1538.7,1538.4,8.18492778]
[1674073473984,0.004684,1538.7,1538.4,11.47667537]
[1674073473985,7.17676286,1538.7,1538.4,11.47667537]
[1674073474191,7.24152467,1538.7,1538.4,15.68625391]
[1674073474464,0.74251467,1538.7,1538.4,15.68625391]
[1674073474622,0.004684,1538.7,1538.4,22.08143391]
[1674073474833,0.004684,1538.7,1538.5,2.20814339]
[1674073475199,0.004684,1538.7,1538.5,11.99951098]
[1674073475372,0.004684,1538.7,1538.5,12.06533876]
[1674073475723,0.004684,1538.7,1538.5,5.56571876]
[1674073476094,0.004684,1538.7,1538.5,12.06553876]
[1674073476292,0.004684,1538.7,1538.6,1.20655388]
[1674073476857,0.67775286,1538.7,1538.5,2.27397117]
[1674073477049,0.67775286,1538.7,1538.4,4.27540632]
[1674073477262,0.67775286,1538.7,1538.4,7.50132613]
[1674073477454,0.67775286,1538.7,1538.4,7.56715391]
[1674073479381,1.68775034,1538.7,1538.4,7.56715391]
[1674073479765,0.67306886,1538.6,1538.4,4.27540632]
[1674073479975,0.67306886,1538.5,1538.3,17.45232778]
[1674073480185,0.67306886,1538.5,1538.3,0.06582778]
[1674073480456,0.67306886,1538.5,1538.2,1.27579265]
[1674073480609,13.67292886,1538.5,1538.2,1.27579265]
[1674073480825,13.73769067,1538.5,1538.2,1.27579265]
[1674073483076,20.23772067,1538.5,1538.2,1.27579265]
[1674073483463,21.24771815,1538.5,1538.2,1.27579265]
[1674073483711,23.41775531,1538.5,1538.2,1.27579265]
[1674073483870,22.40775783,1538.5,1538.2,1.27579265]
[1674073484545,23.41775531,1538.5,1538.2,1.27579265]
[1674073484752,0.67306886,1538.4,1538.2,1.27579265]
[1674073484919,6.50047,1538.4,1538.2,1.27579265]
[1674073485132,6.56523181,1538.4,1538.2,1.27579265]
[1674073486710,13.06570181,1538.4,1538.2,1.27579265]
[1674073486977,14.43957888,1538.4,1538.2,1.27579265]
[1674073487591,20.94004888,1538.4,1538.2,1.27579265]
[1674073488744,21.61311774,1538.4,1538.2,1.27579265]
[1674073488960,1.469,1538.3,1538.2,1.27579265]
[1674073489127,21.97104,1538.3,1538.2,1.27579265]
[1674073489346,25.24472358,1538.3,1538.2,1.27579265]
[1674073489596,30.04747117,1538.3,1538.1,0.18752693]
[1674073489758,26.00608,1538.1,1538.0,0.056]
[1674073489988,35.94556411,1538.1,1537.9,0.17861345]
[1674073490288,23.70212262,1538.0,1537.9,0.17861345]
[1674073490518,23.76688443,1538.0,1537.9,0.17861345]
[1674073490848,24.5943594,1538.0,1537.9,0.17861345]
[1674073491045,28.27179231,1538.0,1537.9,0.17861345]
[1674073491228,24.98004472,1538.0,1537.9,0.17861345]
[1674073491440,13.06866181,1538.0,1537.9,0.17861345]
[1674073491657,6.56671181,1538.0,1537.9,0.17861345]
[1674073493110,0.06476181,1538.0,1537.9,4.70936104]
[1674073493332,6.5011,1538.3,1537.9,11.21173104]
[1674073493333,0.06476181,1538.3,1537.9,11.21173104]
[1674073493540,0.06476181,1538.3,1538.0,1.1211731]
[1674073493541,6.50068,1538.3,1538.0,1.1211731]
[1674073493908,6.50068,1538.3,1537.9,4.77536104]
[1674073493909,6.56544181,1538.3,1537.9,11.27753104]
[1674073494273,6.56544181,1538.3,1537.9,7.98578345]
[1674073494484,13.06612181,1538.3,1537.9,1.48361345]
[1674073494862,13.06612181,1538.3,1538.0,0.14836135]
[1674073495955,19.56680181,1538.3,1537.9,0.17861345]
[1674073499693,13.06612181,1538.3,1537.9,0.17861345]
[1674073500586,13.06612181,1538.3,1537.9,6.68096345]
[1674073500845,13.06612181,1538.3,1537.9,2.23611033]
[1674073501011,13.06612181,1538.3,1537.9,8.67244033]
[1674073501233,13.06612181,1538.3,1537.9,8.73844033]
[1674073501584,13.06612181,1538.3,1537.9,2.23611033]
[1674073501746,13.06612181,1538.3,1537.9,2.17011033]
[1674073501961,13.06623181,1538.3,1538.0,0.21701103]
[1674073502194,6.56544181,1538.3,1537.9,3.53636104]
[1674073502367,0.06476181,1538.3,1537.9,16.47507104]
[1674073502602,13.06586181,1538.4,1538.0,1.6475071]
[1674073503482,0.06476181,1538.4,1538.0,4.93925469]
[1674073503794,25.9494,1538.5,1538.0,17.94312469]
[1674073503795,31.00036181,1538.5,1538.0,17.94312469]
[1674073504103,31.00036181,1538.5,1538.0,0.066]
[1674073504104,1.503,1538.3,1538.0,0.066]
[1674073504268,13.0022,1538.2,1537.9,0.17861345]
[1674073504477,14.06696181,1538.2,1537.9,0.17861345]
[1674073504735,6.50195,1538.0,1537.9,0.17861345]
[1674073504952,13.29866181,1538.0,1537.9,0.17861345]
[1674073506106,0.178,1537.9,1537.6,0.24113927]
[1674073506322,0.178,1537.9,1537.6,0.17713927]
[1674073506323,1.514,1537.7,1537.6,0.17713927]
[1674073506484,4.80574759,1537.7,1537.6,0.17513927]
[1674073506848,20.36270794,1537.7,1537.6,0.17513927]
[1674073507047,13.30118181,1537.7,1537.6,0.17513927]
[1674073507238,0.06476181,1537.7,1537.6,0.12513927]
[1674073507432,16.64642181,1537.9,1537.6,0.12513927]
[1674073508510,1.514,1537.7,1537.6,0.12513927]
[1674073508697,9.071931,1537.7,1537.6,0.12513927]
[1674073508907,10.13669281,1537.7,1537.6,0.12513927]
[1674073509343,22.9316504,1537.7,1537.6,0.12513927]
[1674073509797,13.4284404,1537.7,1537.6,0.12513927]
[1674073510009,21.7836404,1537.7,1537.6,0.12513927]
[1674073510229,9.64996181,1537.7,1537.6,0.12513927]
[1674073510958,23.9509194,1537.7,1537.6,0.12513927]
[1674073511744,9.64996181,1537.7,1537.6,0.12513927]
[1674073512175,0.06476181,1537.7,1537.6,0.12513927]
[1674073512392,8.62996181,1537.9,1537.6,1.34913927]
[1674073512707,8.62996181,1537.9,1537.6,0.2600532]
[1674073512708,1.56976181,1537.9,1537.6,0.2600532]
[1674073512916,1.505,1537.9,1537.6,0.12513927]
[1674073513175,8.00741,1537.9,1537.6,0.12513927]
[1674073513349,8.07217181,1537.9,1537.6,0.12513927]
[1674073513687,1.56976181,1537.9,1537.6,0.12513927]
[1674073513896,21.08296181,1538.0,1537.6,0.12513927]
[1674073516320,27.58503181,1538.0,1537.6,0.12513927]
[1674073517681,11.72776181,1538.0,1537.7,4.80574759]
[1674073517896,11.73244581,1538.0,1537.8,3.29174759]
[1674073518228,11.73244581,1538.0,1537.9,4.79174759]
[1674073518378,11.05489613,1538.0,1537.9,22.60890235]
[1674073518589,11.05489613,1538.0,1537.9,22.67490235]
[1674073518794,11.05489613,1538.0,1537.9,21.17490235]
[1674073519433,11.05489613,1538.0,1537.9,14.67253235]
[1674073520073,11.05489613,1538.0,1537.9,11.38078476]
[1674073520284,11.05489613,1538.0,1537.9,1.87841476]
[1674073520533,11.05489613,1538.0,1537.9,1.224]
[1674073520746,11.05489613,1538.0,1537.8,6.5684]
[1674073520954,11.05489613,1538.0,1537.8,9.86014759]
[1674073523845,11.05489613,1538.0,1537.8,0.066]
[1674073524156,11.05489613,1538.0,1537.7,6.56881]
[1674073524366,11.05489613,1538.0,1537.7,8.57621732]
[1674073524635,11.05489613,1538.0,1537.7,2.07340732]
[1674073524841,11.05489613,1538.0,1537.7,2.00740732]
[1674073524995,11.05489613,1538.0,1537.8,3.29174759]
[1674073525212,11.05289613,1538.0,1537.9,16.62566235]
[1674073525474,11.05489613,1538.0,1537.9,16.69166235]
[1674073525695,11.05489613,1538.0,1537.9,23.19403235]
[1674073527672,0.06944581,1538.0,1537.9,23.19403235]
[1674073527889,0.004684,1538.0,1537.9,23.19403235]
[1674073529092,0.004684,1538.0,1537.9,10.18929235]
[1674073529347,0.004684,1538.0,1537.9,6.89754476]
[1674073531100,0.004684,1538.0,1537.9,13.39991476]
[1674073532037,0.004684,1538.0,1537.9,6.89754476]
[1674073532247,0.004684,1538.0,1537.9,0.066]
[1674073532503,0.004684,1538.0,1537.7,0.066]
[1674073532504,1.243684,1538.0,1537.7,0.066]
[1674073532719,1.243684,1538.0,1537.6,22.61110927]
[1674073533030,7.745754,1538.0,1537.6,19.39942686]
[1674073533250,7.81051581,1538.0,1537.6,19.39942686]
[1674073533406,0.06944581,1538.0,1537.6,25.90306686]
[1674073533612,0.004684,1538.0,1537.6,31.74431155]
[1674073533822,0.004684,1538.0,1537.6,38.24795155]
[1674073534078,0.004684,1538.0,1537.7,3.29174759]
[1674073534242,0.004684,1538.0,1537.7,16.29786759]
[1674073534452,0.004684,1538.0,1537.7,16.36386759]
[1674073534873,0.004684,1538.0,1537.7,9.86066759]
[1674073535757,0.004684,1538.0,1537.7,13.03502674]
[1674073536475,0.004684,1538.0,1537.7,19.53823674]
[1674073537084,0.004684,1538.0,1537.8,1.0]
[1674073537290,0.004684,1538.0,1537.7,19.53823674]
[1674073539772,0.004684,1538.0,1537.7,19.53536997]
[1674073540502,0.004684,1538.0,1537.7,19.53336997]
[1674073540820,0.004684,1538.0,1537.7,19.53536997]
[1674073541196,0.004684,1538.0,1537.8,5.24528459]
[1674073541412,0.004684,1538.0,1537.8,26.33338459]
[1674073541601,0.004684,1538.0,1537.9,7.50237]
[1674073541812,0.004684,1538.0,1537.9,32.19785759]
[1674073542069,0.004684,1538.0,1537.9,35.74539677]
[1674073542286,0.004684,1538.0,1537.9,39.66669015]
[1674073542651,1e-08,1538.0,1537.9,39.66669015]
[1674073543335,1e-08,1538.0,1537.9,48.67419015]
[1674073543552,1e-08,1538.0,1537.9,48.12665097]
[1674073544227,1e-08,1538.0,1537.9,50.15915376]
[1674073544439,1e-08,1538.0,1537.9,51.2882345]
[1674073544699,1e-08,1538.0,1537.9,54.67925502]
[1674073544947,0.004684,1538.5,1538.0,0.00199999]
[1674073545108,0.004684,1538.5,1538.4,1.514]
[1674073545315,0.004684,1538.5,1538.4,17.80626759]
[1674073545535,0.004684,1538.5,1538.4,17.87226759]
[1674073546078,0.004684,1538.5,1538.4,24.37252759]
[1674073546241,0.004684,1538.5,1538.4,17.87226759]
[1674073546434,0.004684,1538.5,1538.4,33.15606459]
[1674073546810,0.004684,1538.5,1538.4,37.67006459]
[1674073550205,0.004684,1538.5,1538.4,53.22946459]
[1674073551728,0.004684,1538.5,1538.4,54.74146459]
[1674073551944,0.004684,1538.5,1538.4,55.25996738]
[1674073552352,0.04247886,1538.8,1538.4,70.76096738]
[1674073552563,0.04247886,1538.8,1538.7,13.14974759]
[1674073552815,0.04247886,1538.8,1538.7,42.21170759]
[1674073553028,0.04247886,1538.8,1538.7,42.73021038]
[1674073554032,0.04247886,1538.8,1538.7,41.21621038]
[1674073555295,0.04247886,1538.8,1538.7,42.73021038]
[1674073555518,0.04247886,1538.8,1538.7,46.24988627]
[1674073558252,0.04247886,1539.1,1538.9,6.83]
[1674073558468,0.04247886,1539.1,1539.0,29.61490759]
[1674073558683,0.04247886,1539.1,1539.0,29.68090759]
[1674073561095,0.04247886,1539.1,1539.0,34.19490759]
[1674073561309,0.04247886,1539.1,1539.0,37.66244459]
[1674073562235,0.04247886,1539.1,1539.0,34.63444459]
[1674073565171,0.04247886,1539.1,1539.0,36.14844459]
[1674073565498,0.0453377,1539.2,1539.1,2.50547886]
[1674073565703,0.0453377,1539.2,1539.1,20.54804097]
[1674073565933,0.0453377,1539.2,1539.1,40.62444376]
[1674073566287,7.7e-06,1539.2,1539.1,40.62444376]
[1674073566494,0.04533223,1539.3,1539.2,7.83]
[1674073566646,0.04533223,1539.3,1539.2,15.69474759]
[1674073566861,0.04533223,1539.3,1539.2,38.70506348]
[1674073567110,0.04533223,1539.3,1539.2,39.22356627]
[1674073567628,2.23e-06,1539.3,1539.2,39.22356627]
[1674073567979,0.04374155,1539.5,1539.2,45.72756627]
[1674073568279,0.04374155,1539.5,1539.4,37.60586759]
[1674073568435,0.04374155,1539.5,1539.4,40.67186759]
[1674073568641,0.04374155,1539.5,1539.4,41.1766037]
[1674073569099,0.04374155,1539.5,1539.4,49.2041037]
[1674073569295,1.55e-06,1539.5,1539.4,49.2041037]
[1674073569506,0.05104135,1539.6,1539.5,7.83]
[1674073569717,0.05104135,1539.6,1539.5,35.18857759]
[1674073569956,0.05104135,1539.6,1539.5,35.6933137]
[1674073571235,0.05104021,1539.9,1539.5,35.6933137]
[1674073571381,0.05104021,1539.9,1539.7,10.12174759]
[1674073571598,0.05104021,1539.9,1539.7,40.63040235]
[1674073573918,0.05104021,1539.9,1539.7,42.14440235]
[1674073574130,0.05104021,1539.9,1539.7,41.13864828]
[1674073574340,0.05104021,1539.9,1539.7,42.64164828]
[1674073575537,0.05104021,1539.9,1539.8,7.83]
[1674073575745,0.05104021,1539.9,1539.8,35.72686872]
[1674073575963,0.05104021,1539.9,1539.8,36.23511465]
[1674073577173,0.05104021,1539.9,1539.8,35.23511465]
[1674073577374,0.05104021,1539.9,1539.8,34.72686872]
[1674073582953,0.05104021,1539.9,1539.8,28.23252872]
[1674073583222,0.05104021,1539.9,1539.8,23.17642759]
[1674073583378,0.05104021,1539.9,1539.8,16.34642759]
[1674073585539,0.05104021,1539.9,1539.8,9.85208759]
[1674073585878,0.05104021,1539.9,1539.8,23.17642759]
[1674073586092,0.05104021,1539.9,1539.8,29.67076759]
[1674073586349,0.05104021,1539.9,1539.8,32.43367882]
[1674073588547,0.05104021,1539.9,1539.8,2.35774759]
[1674073588721,0.05104021,1539.9,1539.8,2.29174759]
[1674073588927,0.05104021,1539.9,1539.7,13.05532]
[1674073589195,0.05104021,1539.9,1539.7,9.85229759]
[1674073589342,0.05104021,1539.9,1539.7,16.34706759]
[1674073589556,0.05104021,1539.9,1539.7,22.84183759]
[1674073590203,0.05104021,1539.9,1539.8,3.29174759]
[1674073590558,0.05104021,1539.9,1539.8,9.78608759]
[1674073590775,2.79204021,1539.9,1539.8,0.066]
[1674073591083,3.02204021,1539.9,1539.6,9.56118]
[1674073591241,2.79204021,1539.9,1539.6,9.56118]
[1674073591447,0.23,1539.8,1539.6,9.56118]
[1674073591724,1.55304021,1539.9,1539.6,21.60330159]
[1674073591867,0.05104021,1539.9,1539.6,21.60330159]
[1674073592189,0.05104021,1539.9,1539.7,16.21627282]
[1674073592396,0.05104021,1539.9,1539.7,16.28227282]
[1674073595623,0.05104021,1539.9,1539.7,22.77704282]
[1674073595841,0.05104021,1539.9,1539.8,8.77204428]
[1674073596054,0.05104021,1539.9,1539.8,8.83804428]
[1674073596415,0.05104021,1539.9,1539.8,31.94847187]
[1674073596627,0.05104021,1539.9,1539.8,34.94847187]
[1674073597262,0.05104021,1539.9,1539.8,36.45547187]
[1674073597476,0.05104021,1539.9,1539.8,36.95022087]
[1674073597690,0.05104021,1539.9,1539.8,36.45547187]
[1674073598325,9.44270685,1540.1,1539.8,36.45547187]
[1674073598550,9.44270685,1540.1,1540.0,26.3105]
[1674073598784,9.44270685,1540.1,1540.0,29.66824759]
[1674073598996,9.44270685,1540.1,1540.0,32.66824759]
[1674073599234,9.44270685,1540.1,1540.0,34.67699659]
[1674073599235,8.48280423,1540.1,1540.0,34.67699659]
[1674073599522,0.06476181,1540.1,1540.0,34.67699659]
[1674073599687,0.06050849,1540.4,1540.0,34.67699659]
[1674073599688,0.06050849,1540.4,1540.1,0.06476181]
[1674073599898,0.06050849,1540.4,1540.3,19.47672]
[1674073600135,0.06050849,1540.4,1540.3,32.66446759]
[1674073608021,0.06050849,1540.4,1540.3,12.84998759]
[1674073608332,0.29050849,1540.4,1540.3,12.84998759]
[1674073609076,0.29050849,1540.4,1540.3,9.84998759]
[1674073609287,1.79550849,1540.4,1540.3,0.066]
[1674073609509,1.79550849,1540.4,1540.1,0.13076181]
[1674073609510,2.62421034,1540.4,1540.1,0.13076181]
[1674073609813,2.62421034,1540.4,1540.1,3.3565094]
[1674073609814,0.23,1540.3,1540.1,3.3565094]
[1674073609967,0.23,1540.3,1540.1,9.8495794]
[1674073610181,0.23,1540.3,1540.1,9.9155794]
[1674073611443,0.23,1540.3,1540.1,0.13076181]
[1674073611779,8.23324,1540.3,1540.1,0.06476181]
[1674073611966,1.502,1540.2,1540.1,0.06476181]
[1674073612179,1.732,1540.2,1540.1,0.06476181]
[1674073612426,2.732,1540.2,1540.1,0.06476181]
[1674073612699,1.732,1540.2,1540.1,0.06476181]
[1674073612908,2.732,1540.2,1540.1,0.06476181]
[1674073613177,1.732,1540.2,1540.1,0.06476181]
[1674073614695,2.732,1540.2,1540.1,0.06476181]
[1674073614904,1.732,1540.2,1540.1,0.06476181]
[1674073615384,0.23,1540.2,1540.1,0.06476181]
[1674073615603,0.23,1540.2,1540.1,7.21364299]
[1674073615780,0.23,1540.3,1540.1,7.27964299]
[1674073616167,0.06050849,1540.4,1540.2,3.29174759]
[1674073616392,0.06050849,1540.4,1540.2,5.68119465]
[1674073616617,0.06050849,1540.4,1540.2,12.23966465]
[1674073616838,0.06050849,1540.4,1540.2,0.066]
[1674073616839,8.05442849,1540.4,1540.2,0.066]
[1674073617006,8.1191903,1540.4,1540.1,0.06476181]
[1674073617641,0.23,1540.3,1540.1,0.06476181]
[1674073618150,0.23,1540.3,1540.2,3.29174759]
[1674073618261,0.23,1540.3,1540.2,10.12005853]
[1674073618476,0.23,1540.3,1540.2,10.18605853]
[1674073619768,0.06050849,1540.4,1540.2,23.17137853]
[1674073619979,0.06050849,1540.4,1540.3,3.29174759]
[1674073620209,0.29050849,1540.4,1540.3,16.27622759]
[1674073620367,0.29050849,1540.4,1540.3,16.34222759]
[1674073621420,0.06050849,1540.4,1540.3,16.34222759]
[1674073621630,0.06050849,1540.4,1540.3,9.84998759]
[1674073621917,0.06050849,1540.4,1540.3,3.35774759]
[1674073622179,0.29050849,1540.4,1540.3,9.78398759]
[1674073622398,0.29050849,1540.4,1540.3,9.84998759]
[1674073622836,0.06050849,1540.4,1540.3,3.35774759]
[1674073623154,0.06050849,1540.4,1540.3,11.45202835]
[1674073623464,0.06050849,1540.4,1540.3,11.51802835]
[1674073624060,0.29050849,1540.4,1540.3,11.51802835]
[1674073626693,0.29050849,1540.4,1540.3,18.01026835]
[1674073626902,0.06050849,1540.4,1540.3,34.33250835]
[1674073627167,0.06050849,1540.4,1540.3,34.32993984]
[1674073627323,1e-08,1540.4,1540.3,34.32993984]
[1674073627866,1e-08,1540.4,1540.3,21.34545984]
[1674073628071,1e-08,1540.4,1540.3,8.02321984]
[1674073628305,1e-08,1540.4,1540.3,14.51545984]
[1674073629793,1e-08,1540.4,1540.3,21.00769984]
[1674073629981,1e-08,1540.4,1540.3,9.84741908]
[1674073632012,1e-08,1540.4,1540.3,3.35517908]
[1674073632172,1e-08,1540.4,1540.3,3.28917908]
[1674073632368,1e-08,1540.4,1540.3,23.10365908]
[1674073632575,1e-08,1540.4,1540.3,23.16965908]
[1674073633625,1e-08,1540.4,1540.3,26.16965908]
[1674073634925,1e-08,1540.4,1540.3,32.66189908]
[1674073635935,1e-08,1540.4,1540.3,6.35517908]
[1674073636408,1e-08,1540.4,1540.3,3.066]
[1674073636573,1.50300001,1540.4,1540.2,3.066]
[1674073636782,1.50300001,1540.4,1540.2,3.0]
[1674073636783,0.23,1540.3,1540.2,3.0]
[1674073638404,0.23,1540.3,1540.2,11.75358318]
[1674073638627,1.50300001,1540.4,1540.2,11.75358318]
[1674073638628,1e-08,1540.4,1540.2,21.60399077]
[1674073638846,0.23000001,1540.4,1540.3,9.78398759]
[1674073638985,0.23000001,1540.4,1540.3,12.84998759]
[1674073641246,0.23000001,1540.4,1540.3,3.066]
[1674073641406,0.23000001,1540.4,1540.2,3.066]
[1674073641620,0.23000001,1540.4,1540.2,3.0]
[1674073641822,20.29281204,1540.6,1540.4,0.23]
[1674073641823,0.14461701,1540.6,1540.4,0.23]
[1674073642031,0.0798552,1540.6,1540.5,10.12174759]
[1674073642243,0.0798552,1540.6,1540.5,32.66191759]
[1674073642487,0.0798552,1540.6,1540.5,34.12036751]
[1674073645534,0.0798552,1540.6,1540.5,33.67677922]
[1674073647366,0.0632691,1540.7,1540.6,6.83]
[1674073647584,0.0632691,1540.7,1540.6,32.66065759]
[1674073647794,0.0632691,1540.7,1540.6,34.95529777]
[1674073649683,0.0632691,1540.7,1540.6,35.39888606]
[1674073650205,0.06462443,1540.9,1540.8,32.79052]
[1674073650367,0.06462443,1540.9,1540.8,39.14826759]
[1674073651414,0.06462443,1540.9,1540.8,41.10585588]
[1674073651622,0.06462443,1540.9,1540.8,42.12071751]
[1674073652081,0.06930843,1541.0,1540.9,7.83]
[1674073652252,0.06930843,1541.0,1540.9,35.17087759]
[1674073652462,0.06930843,1541.0,1540.9,35.61446588]
[1674073652668,0.06930843,1541.0,1540.9,37.90910606]
[1674073653515,0.06930843,1541.0,1540.9,36.90910606]
[1674073654459,0.01930843,1541.0,1540.9,36.90910606]
[1674073655095,0.01930843,1541.0,1540.9,36.46551777]
[1674073655552,0.01930843,1541.0,1540.9,36.90910606]
[1674073656088,0.01930843,1541.0,1540.9,41.90910606]
[1674073656309,0.01930843,1541.0,1540.9,40.39510606]
[1674073656925,0.01930843,1541.0,1540.9,35.39510606]
[1674073657352,0.01930843,1541.0,1540.9,28.46180777]
[1674073657515,0.01930843,1541.0,1540.9,15.14209777]
[1674073657738,0.01930843,1541.0,1540.9,12.84745759]
[1674073657981,0.01930843,1541.0,1540.9,6.35774759]
[1674073658194,0.24930843,1541.0,1540.9,3.066]
[1674073658387,0.24930843,1541.0,1540.8,0.066]
[1674073658594,9.19783397,1541.0,1540.8,3.29174759]
[1674073658772,9.26259578,1541.0,1540.8,3.29174759]
[1674073659312,1.514,1540.9,1540.7,0.066]
[1674073659687,1.514,1540.9,1540.7,3.29174759]
[1674073659980,20.73651578,1541.0,1540.7,4.31052235]
[1674073659981,14.80665024,1541.0,1540.7,4.31052235]
[1674073660190,14.80665024,1541.0,1540.7,3.29174759]
[1674073662044,1.82807024,1541.0,1540.8,3.29174759]
[1674073662266,0.24930843,1541.0,1540.8,3.29174759]
[1674073663529,0.24930843,1541.0,1540.9,3.29174759]
[1674073663693,0.24930843,1541.0,1540.9,12.09165735]
[1674073663694,0.01930843,1541.0,1540.9,12.09165735]
[1674073664020,0.01930843,1541.0,1540.9,12.15765735]
[1674073668841,0.01930843,1541.0,1540.9,5.66794735]
[1674073669005,0.01930843,1541.0,1540.9,3.35774759]
[1674073669214,0.01930843,1541.0,1540.9,3.29174759]
[1674073669482,0.24930843,1541.0,1540.8,0.066]
[1674073669674,0.24930843,1541.0,1540.8,3.29174759]
[1674073671526,6.73868843,1541.0,1540.7,3.066]
[1674073671771,6.80345024,1541.0,1540.7,8.57948259]
[1674073671999,6.80345024,1541.0,1540.7,8.64548259]
[1674073675730,6.80345024,1541.0,1540.7,8.64289601]
[1674073681090,7.47797527,1541.0,1540.7,8.64289601]
[1674073682193,1.514,1540.8,1540.5,6.83]
[1674073682449,2.18852503,1540.8,1540.7,0.066]
[1674073682582,22.69343697,1540.8,1540.2,8.35774759]
[1674073682791,19.47349,1540.6,1540.2,8.35774759]
[1674073683027,19.53825181,1540.6,1540.2,3.35774759]
[1674073683195,0.23,1540.5,1540.3,3.29174759]
[1674073683406,0.06476181,1540.6,1540.3,3.29174759]
[1674073683615,25.70505181,1540.7,1540.3,9.78387759]
[1674073683863,25.70505181,1540.7,1540.3,11.76491518]
[1674073684084,32.19564181,1540.7,1540.3,5.27278518]
[1674073684402,1.514,1540.6,1540.3,3.35774759]
[1674073684615,6.49139,1540.5,1540.3,3.29174759]
[1674073684925,8.06715181,1540.5,1540.2,0.066]
[1674073685135,16.00819981,1540.5,1540.2,3.29174759]
[1674073685309,1.502,1540.4,1540.1,0.16610866]
[1674073685525,21.04993181,1540.5,1540.1,6.95549087]
[1674073685749,0.23,1540.4,1540.1,7.02149087]
[1674073685968,8.06715181,1540.5,1540.2,3.29174759]
[1674073686173,8.06715181,1540.5,1540.2,3.99389668]
[1674073686401,8.06715181,1540.5,1540.3,3.29174759]
[1674073686402,0.06476181,1540.5,1540.3,3.29174759]
[1674073686615,24.20338181,1540.7,1540.4,0.32917476]
[1674073686764,0.23,1540.6,1540.4,0.32917476]
[1674073689818,9.65946181,1540.7,1540.4,10.11272235]
[1674073690032,9.65946181,1540.7,1540.5,1.01127224]
[1674073690277,0.06476181,1540.7,1540.6,3.29174759]